fUSD/lending_fUSD_20241222
["ID","MTS","AMOUNT","RATE_DAILY","PERIOD"]
[346339317,1734899448379,-3976.0,0.00019452,2]
[346339319,1734899448388,-3595.14,0.00019452,2]
[346339321,1734899448398,-502.74,0.00019452,2]
[346339323,1734899448407,-2132.97,0.00019452,2]
[346339325,1734899448416,-4780.66,0.00019452,2]
[346339327,1734899448426,-500.0,0.00019452,2]
[346339329,1734899448437,-1626.53,0.00019452,2]
[346339331,1734899448446,-500.0,0.00019452,2]
[346339333,1734899448455,-2531.99,0.00019452,2]
[346339335,1734899448464,-2939.08,0.00019452,2]
[346339337,1734899448473,-500.0,0.00019452,2]
[346339339,1734899448482,-500.0,0.00019452,2]
[346339340,1734899448491,-500.0,0.00019452,2]
[346339343,1734899448501,-7418.26,0.00019452,2]
[346339344,1734899448511,-1832.52,0.00019452,2]
[346339346,1734899448520,-500.0,0.00019452,2]
[346339348,1734899448530,-500.0,0.00019452,2]
[346339350,1734899448540,-506.22061954,0.00019452,2]
[346339352,1734899448549,-500.0,0.00019452,2]
[346339354,1734899448562,-500.0,0.00019452,2]
[346339356,1734899448572,-1351.62,0.00019452,2]
[346339358,1734899448582,-500.0,0.00019452,2]
[346339360,1734899448593,-500.0,0.00019452,2]
[346339362,1734899448603,-759.86,0.00019452,2]
[346339364,1734899448613,-2506.74,0.00019452,2]
[346339366,1734899448623,-4718.11,0.00019452,2]
[346339368,1734899448633,-500.0,0.00019452,2]
[346339370,1734899448643,-500.0,0.00019452,2]
[346339372,1734899448652,-16828.16,0.00019452,2]
[346339374,1734899448662,-6959.81,0.00019452,2]
[346339376,1734899448672,-500.0,0.00019452,2]
[346339378,1734899448682,-500.0,0.00019452,2]
[346339380,1734899448693,-500.0,0.00019452,2]
[346339382,1734899448703,-500.0,0.00019452,2]
[346339384,1734899448713,-500.0,0.00019452,2]
[346339386,1734899448724,-1627.31,0.00019452,2]
[346339387,1734899448734,-500.0,0.00019452,2]
[346339389,1734899448745,-500.0,0.00019452,2]
[346339391,1734899448755,-723.17,0.00019452,2]
[346339393,1734899448765,-500.0,0.00019452,2]
[346339395,1734899448775,-500.0,0.00019452,2]
[346339397,1734899448785,-1317.39,0.00019452,2]
[346339399,1734899448796,-500.0,0.00019452,2]
[346339401,1734899448806,-3304.72,0.00019452,2]
[346339403,1734899448821,-3579.7,0.00019452,2]
[346339405,1734899448832,-3182.68,0.00019452,2]
[346339407,1734899448842,-500.0,0.00019452,2]
[346339410,1734899448855,-500.0,0.00019452,2]
[346339412,1734899448864,-1775.73,0.00019452,2]
[346339413,1734899448874,-1388.04,0.00019452,2]
[346339415,1734899448884,-1488.51,0.00019452,2]
[346339417,1734899448894,-1104.23,0.00019452,2]
[346339419,1734899448903,-607.09,0.00019452,2]
[346339421,1734899448913,-746.39,0.00019452,2]
[346339423,1734899448923,-500.0,0.00019452,2]
[346339425,1734899448932,-8217.29,0.00019452,2]
[346339427,1734899448941,-500.0,0.00019452,2]
[346339429,1734899448950,-500.0,0.00019452,2]
[346339431,1734899448959,-500.0,0.00019452,2]
[346339433,1734899448969,-500.0,0.00019452,2]
[346339435,1734899448978,-804.28,0.00019452,2]
[346339437,1734899448990,-500.0,0.00019452,2]
[346339439,1734899449000,-500.0,0.00019452,2]
[346339441,1734899449010,-500.0,0.00019452,2]
[346339443,1734899449019,-500.0,0.00019452,2]
[346339445,1734899449029,-500.0,0.00019452,2]
[346339447,1734899449039,-500.0,0.00019452,2]
[346339449,1734899449048,-500.0,0.00019452,2]
[346339451,1734899449060,-1603.77,0.00019452,2]
[346339453,1734899449070,-215.05,0.00019452,2]
[346339455,1734899449080,-572.76,0.00019452,2]
[346339457,1734899449090,-537.23,0.00019452,2]
[346339459,1734899449100,-501.1,0.00019452,2]
[346339461,1734899449110,-159.85510007,0.00019473,2]
[346339463,1734899449120,-703.53,0.00019499,2]
[346339465,1734899449130,-4125.69,0.00019499,2]
[346339467,1734899449140,-4125.69,0.00019499,2]
[346339468,1734899449149,-4125.69,0.00019499,2]
[346339470,1734899449160,-4125.69,0.00019499,2]
[346339472,1734899449169,-4125.69,0.00019499,2]
[346339474,1734899449179,-4125.69,0.00019499,2]
[346339476,1734899449189,-4125.69,0.00019499,2]
[346339478,1734899449198,-4125.69,0.00019499,2]
[346339480,1734899449208,-4125.69,0.00019499,2]
[346339482,1734899449218,-4125.69,0.00019499,2]
[346339484,1734899449229,-4125.69,0.00019499,2]
[346339486,1734899449239,-4125.69,0.00019499,2]
[346339488,1734899449249,-4125.69,0.00019499,2]
[346339490,1734899449259,-4125.69,0.00019499,2]
[346339492,1734899449269,-4125.69,0.00019499,2]
[346339494,1734899449280,-4125.69,0.00019499,2]
[346339496,1734899449290,-4125.69,0.00019499,2]
[346339498,1734899449300,-4125.69,0.00019499,2]
[346339500,1734899449310,-4125.69,0.00019499,2]
[346339502,1734899449319,-4125.69,0.00019499,2]
[346339504,1734899449330,-4125.8724562,0.00019499,2]
[346339506,1734899449340,-26975.60843874,0.00019499,7]
[346339508,1734899449350,-500.0,0.00019499,2]
[346339510,1734899449360,-500.0,0.00019499,2]
[346339512,1734899449370,-239.72515964,0.00019499,2]
[346339514,1734899449380,-3553144.08619448,0.000195,3]
[346339516,1734899449391,-28190.00844515,0.000195,3]
[346339518,1734899449401,-4092723.58383921,0.000195,2]
[346339520,1734899449410,-200.0,0.000195,2]
[346339522,1734899449420,-200.0,0.000195,2]
[346339524,1734899449430,-2000.0,0.000195,2]
[346339526,1734899449440,-200.0,0.000195,2]
[346339528,1734899449450,-456.9,0.000195,2]
[346339530,1734899449461,-941.36,0.00019588,2]
[346339532,1734899449470,-400.0,0.000196,7]
[346339534,1734899449480,-703.53,0.00019636,2]
[346339536,1734899449490,-200.0,0.00019695,2]
[346339538,1734899449501,-2000.0,0.00019695,2]
[346339540,1734899449510,-200.0,0.00019695,2]
[346339542,1734899449520,-26495.07294377,0.000197,2]
[346339544,1734899449530,-400.0,0.000197,7]
[346339546,1734899449540,-2106.0,0.000197,2]
[346339548,1734899449549,-1540.42,0.00019722,2]
[346339550,1734899449560,-873.6,0.00019722,2]
[346339552,1734899449569,-5140.68,0.00019725,2]
[346339554,1734899449578,-500.0,0.00019725,2]
[346339555,1734899449588,-500.0,0.00019725,2]
[346339557,1734899449597,-1000.0,0.00019725,2]
[346339559,1734899449607,-639.91,0.00019725,2]
[346339561,1734899449618,-500.0,0.00019725,2]
[346339563,1734899449628,-1874.83,0.00019725,2]
[346339565,1734899449638,-2112.61,0.00019725,2]
[346339567,1734899449647,-500.0,0.00019726,2]
[346339569,1734899449657,-500.0,0.00019726,2]
[346339571,1734899449667,-500.0,0.00019726,2]
[346339573,1734899449676,-500.0,0.00019726,2]
[346339575,1734899449685,-585.52,0.00019726,2]
[346339577,1734899449695,-500.0,0.00019726,2]
[346339579,1734899449704,-272.1,0.00019726,2]
[346339581,1734899449714,-500.0,0.00019726,2]
[346339583,1734899449724,-500.0,0.00019726,2]
[346339585,1734899449734,-500.0,0.00019726,2]
[346339587,1734899449744,-500.0,0.00019726,2]
[346339589,1734899449755,-500.0,0.00019726,2]
[346339591,1734899449768,-499.50690646,0.00019726,2]
[346339593,1734899449779,-500.0,0.00019726,2]
[346339595,1734899449788,-196.34646681,0.00019726,2]
[346339596,1734899449798,-500.0,0.00019726,2]
[346339615,1734899449968,-500.0,0.00019726,2]
[346339617,1734899449979,-500.0,0.00019726,2]
[346339618,1734899449991,-500.0,0.00019726,2]
[346339620,1734899450000,-500.0,0.00019726,2]
[346339622,1734899450009,-558.82,0.00019726,2]
[346339624,1734899450019,-204.9956873,0.00019726,2]
[346339626,1734899450028,-372.69,0.00019726,2]
[346339628,1734899450039,-500.0,0.00019726,2]
[346339630,1734899450049,-500.0,0.00019726,2]
[346339632,1734899450060,-500.0,0.00019726,2]
[346339634,1734899450071,-500.0,0.00019726,2]
[346339636,1734899450081,-351.35294587,0.00019726,2]
[346339638,1734899450091,-484.480735,0.00019726,2]
[346339640,1734899450101,-500.0,0.00019726,2]
[346339642,1734899450111,-502.04,0.00019726,2]
[346339644,1734899450120,-1044.442115,0.00019726,2]
[346339646,1734899450130,-500.0,0.00019726,2]
[346339647,1734899450139,-500.0,0.00019726,2]
[346339649,1734899450149,-500.0,0.00019726,2]
[346339651,1734899450159,-500.0,0.00019726,2]
[346339653,1734899450169,-500.0,0.00019726,2]
[346339655,1734899450179,-500.0,0.00019726,2]
[346339657,1734899450189,-500.0,0.00019726,2]
[346339659,1734899450200,-500.0,0.00019726,2]
[346339661,1734899450210,-500.0,0.00019726,2]
[346339663,1734899450220,-500.0,0.00019726,2]
[346339665,1734899450230,-500.0,0.00019726,2]
[346339667,1734899450240,-500.0,0.00019726,2]
[346339669,1734899450250,-500.0,0.00019726,2]
[346339671,1734899450261,-500.0,0.00019726,2]
[346339673,1734899450271,-500.0,0.00019726,2]
[346339675,1734899450281,-500.0,0.00019726,2]
[346339677,1734899450291,-500.0,0.00019726,2]
[346339679,1734899450301,-500.0,0.00019726,2]
[346339681,1734899450313,-500.0,0.00019726,2]
[346339683,1734899450324,-500.0,0.00019726,2]
[346339685,1734899450334,-500.0,0.00019726,2]
[346339687,1734899450344,-500.0,0.00019726,2]
[346339688,1734899450354,-500.0,0.00019726,2]
[346339689,1734899450365,-552.23,0.00019726,2]
[346339690,1734899450375,-500.0,0.00019726,2]
[346339691,1734899450385,-500.0,0.00019726,2]
[346339692,1734899450395,-500.0,0.00019726,2]
[346339693,1734899450404,-500.0,0.00019726,2]
[346339694,1734899450415,-500.0,0.00019726,2]
[346339695,1734899450426,-500.0,0.00019726,2]
[346339696,1734899450435,-621.02,0.00019726,2]
[346339697,1734899450445,-500.0,0.00019726,2]
[346339698,1734899450455,-500.0,0.00019726,2]
[346339699,1734899450465,-500.0,0.00019726,2]
[346339700,1734899450475,-500.0,0.00019726,2]
[346339701,1734899450486,-500.0,0.00019726,2]
[346339702,1734899450495,-500.0,0.00019726,2]
[346339704,1734899450505,-1961.37,0.00019726,2]
[346339706,1734899450515,-500.0,0.00019726,2]
[346339707,1734899450524,-500.0,0.00019726,2]
[346339709,1734899450534,-500.0,0.00019726,2]
[346339711,1734899450543,-500.0,0.00019726,2]
[346339712,1734899450553,-500.0,0.00019726,2]
[346339713,1734899450563,-500.0,0.00019726,2]
[346339714,1734899450573,-500.0,0.00019726,2]
[346339715,1734899450582,-500.0,0.00019726,2]
[346339716,1734899450592,-500.0,0.00019726,2]
[346339717,1734899450602,-210.74436293,0.00019726,2]
[346339718,1734899450611,-500.0,0.00019726,2]
[346339719,1734899450620,-500.0,0.00019726,2]
[346339720,1734899450629,-500.0,0.00019726,2]
[346339721,1734899450638,-500.0,0.00019726,2]
[346339722,1734899450647,-500.0,0.00019726,2]
[346339723,1734899450656,-643.6319857,0.00019726,2]
[346339724,1734899450666,-500.0,0.00019726,2]
[346339725,1734899450675,-500.0,0.00019726,2]
[346339726,1734899450684,-537.29,0.00019726,2]
[346339727,1734899450693,-500.0,0.00019726,2]
[346339728,1734899450701,-604.27726948,0.00019726,2]
[346339729,1734899450710,-500.0,0.00019726,2]
[346339730,1734899450719,-548.66,0.00019726,2]
[346339731,1734899450728,-500.0,0.00019726,2]
[346339732,1734899450739,-500.0,0.00019726,2]
[346339733,1734899450750,-500.0,0.00019726,2]
[346339734,1734899450760,-438.97316478,0.00019726,2]
[346339735,1734899450769,-500.0,0.00019726,2]
[346339736,1734899450778,-500.0,0.00019726,2]
[346339737,1734899450787,-500.0,0.00019726,2]
[346339738,1734899450797,-500.0,0.00019726,2]
[346339739,1734899450807,-500.0,0.00019726,2]
[346339740,1734899450818,-500.0,0.00019726,2]
[346339741,1734899450828,-500.0,0.00019726,2]
[346339743,1734899450838,-500.0,0.00019726,2]
[346339745,1734899450847,-500.0,0.00019726,2]
[346339747,1734899450857,-500.0,0.00019726,2]
[346339749,1734899450866,-500.0,0.00019726,2]
[346339751,1734899450876,-500.0,0.00019726,2]
[346339753,1734899450885,-500.0,0.00019726,2]
[346339755,1734899450893,-615.82,0.00019726,2]
[346339757,1734899450902,-561.51,0.00019726,2]
[346339759,1734899450912,-500.0,0.00019726,2]
[346339761,1734899450922,-500.0,0.00019726,2]
[346339763,1734899450931,-500.0,0.00019726,2]
[346339765,1734899450940,-500.0,0.00019726,2]
[346339767,1734899450949,-500.0,0.00019726,2]
[346339769,1734899450958,-500.0,0.00019726,2]
[346339771,1734899450968,-500.0,0.00019726,2]
[346339773,1734899450977,-500.0,0.00019726,2]
[346339775,1734899450991,-500.0,0.00019726,2]
[346339777,1734899451000,-500.0,0.00019726,2]
[346339779,1734899451010,-612.26,0.00019726,2]
[346339781,1734899451021,-500.0,0.00019726,2]
[346339783,1734899451031,-500.0,0.00019726,2]
[346339785,1734899451041,-500.0,0.00019726,2]
[346339787,1734899451050,-500.0,0.00019726,2]
[346339789,1734899451064,-500.0,0.00019726,2]
[346339791,1734899451074,-500.0,0.00019726,2]
[346339793,1734899451084,-500.0,0.00019726,2]
[346339795,1734899451094,-500.0,0.00019726,2]
[346339797,1734899451104,-500.0,0.00019726,2]
[346339798,1734899451114,-500.0,0.00019726,2]
[346339801,1734899451124,-500.0,0.00019726,2]
[346339803,1734899451133,-500.0,0.00019726,2]
[346339805,1734899451143,-911.0,0.00019726,2]
[346339807,1734899451152,-500.0,0.00019726,2]
[346339809,1734899451161,-500.0,0.00019726,2]
[346339811,1734899451171,-500.0,0.00019726,2]
[346339813,1734899451180,-500.0,0.00019726,2]
[346339815,1734899451190,-500.0,0.00019726,2]
[346339816,1734899451199,-500.0,0.00019726,2]
[346339818,1734899451208,-500.0,0.00019726,2]
[346339820,1734899451218,-500.0,0.00019726,2]
[346339822,1734899451227,-3801.15,0.00019726,2]
[346339824,1734899451237,-604.62,0.00019726,2]
[346339826,1734899451246,-500.0,0.00019726,2]
[346339828,1734899451256,-500.0,0.00019726,2]
[346339830,1734899451265,-500.0,0.00019726,2]
[346339832,1734899451274,-500.0,0.00019726,2]
[346339834,1734899451283,-500.0,0.00019726,2]
[346339836,1734899451292,-323.1942877,0.00019726,2]
[346339838,1734899451301,-528.08,0.00019726,2]
[346339840,1734899451311,-500.0,0.00019726,2]
[346339842,1734899451320,-500.0,0.00019726,2]
[346339844,1734899451329,-500.0,0.00019726,2]
[346339846,1734899451339,-500.0,0.00019726,2]
[346339848,1734899451348,-500.0,0.00019726,2]
[346339850,1734899451357,-500.0,0.00019726,2]
[346339852,1734899451366,-500.0,0.00019726,2]
[346339854,1734899451375,-500.0,0.00019726,2]
[346339856,1734899451385,-500.0,0.00019726,2]
[346339858,1734899451393,-500.0,0.00019726,2]
[346339860,1734899451402,-500.0,0.00019726,2]
[346339862,1734899451411,-500.0,0.00019726,2]
[346339864,1734899451421,-500.0,0.00019726,2]
[346339866,1734899451430,-500.0,0.00019726,2]
[346339868,1734899451439,-756.31,0.00019726,2]
[346339870,1734899451448,-500.0,0.00019726,2]
[346339871,1734899451457,-500.0,0.00019726,2]
[346339873,1734899451466,-500.0,0.00019726,2]
[346339874,1734899451476,-500.0,0.00019726,2]
[346339875,1734899451485,-500.0,0.00019726,2]
[346339876,1734899451494,-500.0,0.00019726,2]
[346339877,1734899451503,-500.0,0.00019726,2]
[346339878,1734899451512,-500.0,0.00019726,2]
[346339879,1734899451521,-500.0,0.00019726,2]
[346339880,1734899451530,-500.0,0.00019726,2]
[346339881,1734899451540,-500.0,0.00019726,2]
[346339882,1734899451549,-500.0,0.00019726,2]
[346339883,1734899451558,-500.0,0.00019726,2]
[346339884,1734899451569,-587.88,0.00019726,2]
[346339885,1734899451578,-500.0,0.00019726,2]
[346339886,1734899451588,-500.0,0.00019726,2]
[346339887,1734899451598,-500.0,0.00019726,2]
[346339888,1734899451607,-500.0,0.00019726,2]
[346339889,1734899451616,-226.98,0.00019726,2]
[346339890,1734899451626,-500.0,0.00019726,2]
[346339891,1734899451635,-500.0,0.00019726,2]
[346339892,1734899451644,-500.0,0.00019726,2]
[346339893,1734899451653,-500.0,0.00019726,2]
[346339894,1734899451662,-500.0,0.00019726,2]
[346339895,1734899451671,-500.0,0.00019726,2]
[346339896,1734899451681,-500.0,0.00019726,2]
[346339897,1734899451691,-500.0,0.00019726,2]
[346339898,1734899451700,-500.0,0.00019726,2]
[346339899,1734899451710,-500.0,0.00019726,2]
[346339900,1734899451719,-766.17,0.00019726,2]
[346339901,1734899451729,-500.0,0.00019726,2]
[346339902,1734899451738,-500.0,0.00019726,2]
[346339903,1734899451748,-500.0,0.00019726,2]
[346339904,1734899451757,-204.5,0.00019726,2]
[346339905,1734899451767,-500.0,0.00019726,2]
[346339907,1734899451776,-524.01,0.00019726,2]
[346339909,1734899451786,-500.0,0.00019726,2]
[346339911,1734899451795,-1366.49,0.00019726,2]
[346339913,1734899451805,-500.0,0.00019726,2]
[346339915,1734899451816,-917.42,0.00019726,2]
[346339917,1734899451825,-500.0,0.00019726,2]
[346339919,1734899451834,-563.44,0.00019726,2]
[346339920,1734899451843,-565.6,0.00019726,2]
[346339922,1734899451852,-500.0,0.00019726,2]
[346339924,1734899451861,-500.0,0.00019726,2]
[346339926,1734899451871,-301.89824947,0.00019726,2]
[346339928,1734899451880,-1016.95,0.00019726,2]
[346339930,1734899451889,-1094.75,0.00019726,2]
[346339932,1734899451898,-500.0,0.00019726,2]
[346339934,1734899451907,-2103.77,0.00019726,2]
[346339936,1734899451916,-500.0,0.00019726,2]
[346339938,1734899451925,-500.0,0.00019726,2]
[346339940,1734899451935,-189.5603183,0.00019726,2]
[346339942,1734899451944,-500.0,0.00019726,2]
[346339944,1734899451953,-2424.78,0.00019726,2]
[346339946,1734899451963,-873.71,0.00019726,2]
[346339948,1734899451973,-500.0,0.00019726,2]
[346339950,1734899451982,-2817.01,0.00019726,2]
[346339952,1734899451994,-500.0,0.00019726,2]
[346339954,1734899452004,-954.0,0.00019726,2]
[346339956,1734899452013,-699.61,0.00019726,2]
[346339958,1734899452022,-1254.14,0.00019726,2]
[346339960,1734899452034,-500.0,0.00019726,2]
[346339962,1734899452043,-500.0,0.00019726,2]
[346339964,1734899452052,-2414.81,0.00019726,2]
[346339966,1734899452064,-561.81,0.00019726,2]
[346339968,1734899452073,-532.29,0.00019726,2]
[346339970,1734899452083,-500.0,0.00019726,2]
[346339972,1734899452093,-851.36,0.00019726,2]
[346339974,1734899452103,-500.0,0.00019726,2]
[346339976,1734899452112,-14562.18,0.00019726,2]
[346339978,1734899452122,-500.0,0.00019726,2]
[346339980,1734899452131,-500.0,0.00019726,2]
[346339982,1734899452140,-887.95,0.00019726,2]
[346339984,1734899452149,-500.0,0.00019726,2]
[346339986,1734899452158,-1582.16,0.00019726,2]
[346339988,1734899452168,-500.0,0.00019726,2]
[346339990,1734899452178,-2652.31,0.00019726,2]
[346339992,1734899452187,-1120.88,0.00019726,2]
[346339994,1734899452196,-500.0,0.00019726,2]
[346339996,1734899452205,-500.0,0.00019726,2]
[346339998,1734899452214,-18751.42,0.00019726,2]
[346340000,1734899452223,-500.0,0.00019726,2]
[346340002,1734899452232,-500.0,0.00019726,2]
[346340004,1734899452241,-500.0,0.00019726,2]
[346340006,1734899452250,-860.68,0.00019726,2]
[346340008,1734899452259,-500.0,0.00019726,2]
[346340010,1734899452268,-500.0,0.00019726,2]
[346340012,1734899452278,-1503.26,0.00019726,2]
[346340014,1734899452287,-500.0,0.00019726,2]
[346340016,1734899452296,-195.81174941,0.00019726,2]
[346340018,1734899452305,-500.0,0.00019726,2]
[346340020,1734899452315,-674.52,0.00019726,2]
[346340022,1734899452324,-500.0,0.00019726,2]
[346340024,1734899452333,-627.01,0.00019726,2]
[346340026,1734899452342,-1477.54,0.00019726,2]
[346340028,1734899452352,-3773.48,0.00019726,2]
[346340030,1734899452361,-500.0,0.00019726,2]
[346340032,1734899452370,-500.0,0.00019726,2]
[346340034,1734899452379,-1155.18,0.00019726,2]
[346340036,1734899452388,-500.0,0.00019726,2]
[346340038,1734899452397,-500.0,0.00019726,2]
[346340040,1734899452406,-500.0,0.00019726,2]
[346340042,1734899452415,-500.0,0.00019726,2]
[346340044,1734899452424,-500.0,0.00019726,2]
[346340046,1734899452433,-500.0,0.00019726,2]
[346340048,1734899452442,-3478.76,0.00019726,2]
[346340050,1734899452451,-38676.41,0.00019726,2]
[346340051,1734899452460,-2171.49,0.00019726,2]
[346340053,1734899452469,-500.0,0.00019726,2]
[346340055,1734899452479,-500.0,0.00019726,2]
[346340057,1734899452488,-990.12,0.00019726,2]
[346340059,1734899452497,-500.0,0.00019726,2]
[346340061,1734899452506,-631.76,0.00019726,2]
[346340063,1734899452515,-500.0,0.00019726,2]
[346340065,1734899452525,-2276.93,0.00019726,2]
[346340067,1734899452534,-500.0,0.00019726,2]
[346340069,1734899452543,-500.0,0.00019726,2]
[346340071,1734899452552,-1608.5,0.00019726,2]
[346340073,1734899452561,-281.33783057,0.00019726,2]
[346340075,1734899452572,-1526.98,0.00019726,2]
[346340077,1734899452581,-500.0,0.00019726,2]
[346340079,1734899452590,-500.0,0.00019726,2]
[346340081,1734899452599,-500.0,0.00019726,2]
[346340083,1734899452609,-1298.15,0.00019726,2]
[346340085,1734899452618,-500.0,0.00019726,2]
[346340087,1734899452627,-1838.22,0.00019726,2]
[346340089,1734899452637,-2490.74,0.00019726,2]
[346340104,1734899452646,-500.0,0.00019726,2]
[346340108,1734899452801,-1322.25,0.00019726,2]
[346340110,1734899452811,-500.0,0.00019726,2]
[346340112,1734899452820,-750.41,0.00019726,2]
[346340114,1734899452830,-3799.66,0.00019726,2]
[346340116,1734899452840,-879.9,0.00019726,2]
[346340118,1734899452849,-11739.94,0.00019726,2]
[346340120,1734899452858,-855.83,0.00019726,2]
[346340122,1734899452867,-500.0,0.00019726,2]
[346340124,1734899452876,-500.0,0.00019726,2]
[346340126,1734899452885,-9090.65,0.00019726,2]
[346340128,1734899452894,-500.0,0.00019726,2]
[346340130,1734899452903,-500.0,0.00019726,2]
[346340132,1734899452912,-500.0,0.00019726,2]
[346340134,1734899452920,-500.0,0.00019726,2]
[346340136,1734899452930,-1199.26,0.00019726,2]
[346340138,1734899452939,-500.0,0.00019726,2]
[346340139,1734899452948,-500.0,0.00019726,2]
[346340141,1734899452958,-1086.97,0.00019726,2]
[346340143,1734899452967,-782.24,0.00019726,2]
[346340145,1734899452976,-3247.5,0.00019726,2]
[346340147,1734899452987,-3976.0,0.00019726,2]
[346340149,1734899452997,-3595.14,0.00019726,2]
[346340151,1734899453006,-502.74,0.00019726,2]
[346340153,1734899453015,-2132.97,0.00019726,2]
[346340155,1734899453025,-4780.66,0.00019726,2]
[346340157,1734899453034,-500.0,0.00019726,2]
[346340159,1734899453043,-1626.53,0.00019726,2]
[346340161,1734899453052,-2531.99,0.00019726,2]
[346340163,1734899453062,-2939.08,0.00019726,2]
[346340165,1734899453071,-500.0,0.00019726,2]
[346340167,1734899453080,-500.0,0.00019726,2]
[346340169,1734899453089,-500.0,0.00019726,2]
[346340171,1734899453099,-7418.26,0.00019726,2]
[346340173,1734899453108,-1832.52,0.00019726,2]
[346340175,1734899453117,-500.0,0.00019726,2]
[346340177,1734899453127,-500.0,0.00019726,2]
[346340179,1734899453136,-500.0,0.00019726,2]
[346340181,1734899453145,-500.0,0.00019726,2]
[346340183,1734899453157,-1351.62,0.00019726,2]
[346340185,1734899453169,-500.0,0.00019726,2]
[346340187,1734899453183,-194.91,0.00019726,2]
[346340189,1734899453195,-759.86,0.00019726,2]
[346340191,1734899453204,-2506.74,0.00019726,2]
[346340193,1734899453213,-4718.11,0.00019726,2]
[346340195,1734899453223,-500.0,0.00019726,2]
[346340197,1734899453232,-16828.16,0.00019726,2]
[346340199,1734899453242,-6959.81,0.00019726,2]
[346340201,1734899453251,-500.0,0.00019726,2]
[346340204,1734899453261,-500.0,0.00019726,2]
[346340206,1734899453270,-500.0,0.00019726,2]
[346340207,1734899453279,-500.0,0.00019726,2]
[346340209,1734899453289,-500.0,0.00019726,2]
[346340211,1734899453299,-1627.31,0.00019726,2]
[346340214,1734899453308,-500.0,0.00019726,2]
[346340215,1734899453318,-500.0,0.00019726,2]
[346340218,1734899453328,-723.17,0.00019726,2]
[346340219,1734899453337,-500.0,0.00019726,2]
[346340221,1734899453346,-500.0,0.00019726,2]
[346340223,1734899453355,-1317.39,0.00019726,2]
[346340225,1734899453364,-597.26,0.00019726,2]
[346340227,1734899453372,-3579.7,0.00019726,2]
[346340229,1734899453381,-3304.72,0.00019726,2]
[346340231,1734899453390,-3182.68,0.00019726,2]
[346340233,1734899453400,-500.0,0.00019726,2]
[346340235,1734899453409,-1775.73,0.00019726,2]
[346340237,1734899453418,-500.0,0.00019726,2]
[346340239,1734899453427,-1388.04,0.00019726,2]
[346340241,1734899453436,-1488.51,0.00019726,2]
[346340243,1734899453445,-1104.23,0.00019726,2]
[346340245,1734899453454,-607.09,0.00019726,2]
[346340247,1734899453463,-746.39,0.00019726,2]
[346340249,1734899453472,-500.0,0.00019726,2]
[346340251,1734899453481,-8217.29,0.00019726,2]
[346340253,1734899453490,-500.0,0.00019726,2]
[346340255,1734899453500,-500.0,0.00019726,2]
[346340257,1734899453509,-275.80144226,0.00019726,2]